fUST/lending_fUST_20250708
["ID","MTS","AMOUNT","RATE_DAILY","PERIOD"]
[370241891,1751921448542,-151.0,0.00020273,2]
[370241893,1751921448551,-151.0,0.00020273,2]
[370241895,1751921448560,-460.0,0.00020273,2]
[370241897,1751921448570,-151.0,0.00020273,2]
[370241899,1751921448579,-460.0,0.00020273,2]
[370241901,1751921448588,-460.0,0.00020273,2]
[370241903,1751921448597,-220.013414,0.00020273,2]
[370241905,1751921448606,-220.013414,0.00020273,2]
[370241907,1751921448616,-460.0,0.00020273,2]
[370241908,1751921448625,-460.0,0.00020273,2]
[370241909,1751921448634,-151.0,0.00020273,2]
[370241910,1751921448643,-151.0,0.00020273,2]
[370241911,1751921448653,-314.40816331,0.00020273,2]
[370241912,1751921448663,-151.0,0.00020273,2]
[370241913,1751921448672,-280.817291,0.00020273,2]
[370241914,1751921448684,-280.817291,0.00020273,2]
[370241915,1751921448694,-460.0,0.00020273,2]
[370241916,1751921448703,-460.0,0.00020273,2]
[370241917,1751921448712,-460.0,0.00020273,2]
[370241918,1751921448721,-217.106188,0.00020273,2]
[370241919,1751921448731,-217.106188,0.00020273,2]
[370241921,1751921448740,-285.63350337,0.00020273,2]
[370241923,1751921448750,-491.2,0.00020273,2]
[370241925,1751921448759,-460.0,0.00020273,2]
[370241927,1751921448769,-460.0,0.00020273,2]
[370241929,1751921448778,-460.0,0.00020273,2]
[370241931,1751921448788,-460.0,0.00020273,2]
[370241933,1751921448797,-460.0,0.00020273,2]
[370241935,1751921448807,-460.0,0.00020273,2]
[370241937,1751921448817,-460.0,0.00020273,2]
[370241939,1751921448827,-460.0,0.00020273,2]
[370241941,1751921448836,-460.0,0.00020273,2]
[370241943,1751921448846,-460.0,0.00020273,2]
[370241945,1751921448855,-460.0,0.00020273,2]
[370241947,1751921448864,-460.0,0.00020273,2]
[370241949,1751921448873,-460.0,0.00020273,2]
[370241951,1751921448883,-460.0,0.00020273,2]
[370241953,1751921448892,-460.0,0.00020273,2]
[370241955,1751921448901,-460.0,0.00020273,2]
[370241957,1751921448911,-460.0,0.00020273,2]
[370241959,1751921448920,-460.0,0.00020273,2]
[370241961,1751921448930,-460.0,0.00020273,2]
[370241963,1751921448939,-460.0,0.00020273,2]
[370241965,1751921448948,-460.0,0.00020273,2]
[370241967,1751921448958,-460.0,0.00020273,2]
[370241969,1751921448967,-1492.88,0.00020273,2]
[370241971,1751921448977,-460.0,0.00020273,2]
[370241973,1751921448986,-460.0,0.00020273,2]
[370241975,1751921448995,-460.0,0.00020273,2]
[370241977,1751921449005,-2345.96,0.00020273,2]
[370241993,1751921449143,-460.0,0.00020273,2]
[370241996,1751921449155,-460.0,0.00020273,2]
[370241998,1751921449166,-3578.61,0.00020273,2]
[370242000,1751921449175,-460.0,0.00020273,2]
[370242002,1751921449185,-460.0,0.00020273,2]
[370242004,1751921449194,-460.0,0.00020273,2]
[370242006,1751921449203,-1615.42,0.00020273,2]
[370242008,1751921449212,-460.0,0.00020273,2]
[370242010,1751921449221,-936.72,0.00020273,2]
[370242012,1751921449231,-460.0,0.00020273,2]
[370242014,1751921449240,-3630.9,0.00020273,2]
[370242016,1751921449249,-460.0,0.00020273,2]
[370242018,1751921449258,-460.0,0.00020273,2]
[370242020,1751921449267,-794.66,0.00020273,2]
[370242022,1751921449276,-460.0,0.00020273,2]
[370242024,1751921449286,-647.5,0.00020273,2]
[370242026,1751921449296,-552.8,0.00020273,2]
[370242028,1751921449305,-460.0,0.00020273,2]
[370242030,1751921449314,-2132.19,0.00020273,2]
[370242032,1751921449324,-460.0,0.00020273,2]
[370242034,1751921449333,-815.63,0.00020273,2]
[370242036,1751921449342,-460.0,0.00020273,2]
[370242038,1751921449352,-460.0,0.00020273,2]
[370242040,1751921449361,-669.44,0.00020273,2]
[370242041,1751921449370,-460.0,0.00020273,2]
[370242043,1751921449379,-1413.77,0.00020273,2]
[370242045,1751921449388,-460.0,0.00020273,2]
[370242047,1751921449397,-460.0,0.00020273,2]
[370242049,1751921449407,-460.0,0.00020273,2]
[370242051,1751921449417,-1497.44,0.00020273,2]
[370242053,1751921449426,-460.0,0.00020273,2]
[370242055,1751921449436,-460.0,0.00020273,2]
[370242057,1751921449445,-1545.08,0.00020273,2]
[370242059,1751921449454,-460.0,0.00020273,2]
[370242061,1751921449463,-1183.15,0.00020273,2]
[370242063,1751921449472,-460.0,0.00020273,2]
[370242065,1751921449482,-460.0,0.00020273,2]
[370242067,1751921449491,-460.0,0.00020273,2]
[370242069,1751921449500,-460.0,0.00020273,2]
[370242071,1751921449510,-460.0,0.00020273,2]
[370242073,1751921449519,-460.0,0.00020273,2]
[370242075,1751921449528,-460.0,0.00020273,2]
[370242077,1751921449537,-765.59,0.00020273,2]
[370242079,1751921449546,-636.51,0.00020273,2]
[370242081,1751921449555,-460.0,0.00020273,2]
[370242083,1751921449564,-1657.21,0.00020273,2]
[370242085,1751921449574,-1461.23,0.00020273,2]
[370242087,1751921449583,-460.0,0.00020273,2]
[370242089,1751921449593,-460.0,0.00020273,2]
[370242091,1751921449601,-469.65218683,0.00020273,2]
[370242093,1751921449611,-460.0,0.00020273,2]
[370242095,1751921449620,-463.64,0.00020273,2]
[370242097,1751921449629,-460.0,0.00020273,2]
[370242099,1751921449638,-460.0,0.00020273,2]
[370242101,1751921449647,-460.0,0.00020273,2]
[370242103,1751921449656,-460.0,0.00020273,2]
[370242105,1751921449667,-468.22,0.00020273,2]
[370242107,1751921449678,-2241.64,0.00020273,2]
[370242109,1751921449687,-460.0,0.00020273,2]
[370242111,1751921449697,-460.0,0.00020273,2]
[370242113,1751921449706,-460.0,0.00020273,2]
[370242115,1751921449716,-470.42,0.00020273,2]
[370242117,1751921449725,-545.88,0.00020273,2]
[370242119,1751921449734,-2743.41,0.00020273,2]
[370242121,1751921449743,-460.0,0.00020273,2]
[370242123,1751921449754,-460.0,0.00020273,2]
[370242124,1751921449763,-460.0,0.00020273,2]
[370242126,1751921449772,-2082.34,0.00020273,2]
[370242128,1751921449782,-460.0,0.00020273,2]
[370242130,1751921449791,-460.0,0.00020273,2]
[370242132,1751921449800,-460.0,0.00020273,2]
[370242134,1751921449810,-460.0,0.00020273,2]
[370242136,1751921449819,-1000.0,0.00020322,2]
[370242138,1751921449829,-1000.0,0.00020322,2]
[370242140,1751921449838,-1680.0,0.00020491,2]
[370242142,1751921449847,-3148.84,0.00020533,3]
[370242144,1751921449856,-1574.42,0.00020533,3]
[370242146,1751921449866,-787.2,0.00020533,3]
[370242149,1751921449875,-393.6,0.00020533,3]
[370242151,1751921449885,-12584.46609586,0.00020533,3]
[370242152,1751921449894,-160.0,0.00020533,3]
[370242154,1751921449904,-214.06929976,0.00020533,3]
[370242156,1751921449915,-460.0,0.00020547,2]
[370242158,1751921449924,-163.53,0.00020547,2]
[370242161,1751921449934,-500.0,0.00020547,14]
[370242162,1751921449943,-161.90704,0.00020547,2]
[370242164,1751921449953,-460.0,0.00020547,2]
[370242167,1751921449964,-197.747247,0.00020547,2]
[370242168,1751921449974,-151.0,0.00020547,2]
[370242171,1751921449983,-151.0,0.00020547,2]
[370242173,1751921449993,-151.0,0.00020547,2]
[370242175,1751921450004,-460.0,0.00020547,2]
[370242176,1751921450013,-460.0,0.00020547,2]
[370242178,1751921450023,-151.0,0.00020547,2]
[370242181,1751921450032,-386.98819374,0.00020547,2]
[370242182,1751921450041,-460.0,0.00020547,2]
[370242185,1751921450051,-151.0,0.00020547,2]
[370242187,1751921450061,-151.0,0.00020547,2]
[370242189,1751921450070,-151.0,0.00020547,2]
[370242191,1751921450079,-538.45678139,0.00020547,2]
[370242193,1751921450088,-460.0,0.00020547,2]
[370242195,1751921450097,-460.0,0.00020547,2]
[370242197,1751921450106,-460.0,0.00020547,2]
[370242199,1751921450115,-460.0,0.00020547,2]
[370242200,1751921450124,-151.0,0.00020547,2]
[370242202,1751921450133,-460.0,0.00020547,2]
[370242205,1751921450143,-460.0,0.00020547,2]
[370242207,1751921450152,-460.0,0.00020547,2]
[370242209,1751921450162,-460.0,0.00020547,2]
[370242210,1751921450172,-151.0,0.00020547,2]
[370242213,1751921450181,-151.0,0.00020547,2]
[370242215,1751921450191,-460.0,0.00020547,2]
[370242216,1751921450200,-151.0,0.00020547,2]
[370242219,1751921450210,-151.0,0.00020547,2]
[370242220,1751921450219,-158.701896,0.00020547,2]
[370242222,1751921450228,-151.0,0.00020547,2]
[370242224,1751921450237,-151.0,0.00020547,2]
[370242226,1751921450247,-460.0,0.00020547,2]
[370242228,1751921450256,-460.0,0.00020547,2]
[370242230,1751921450265,-151.0,0.00020547,2]
[370242232,1751921450274,-460.0,0.00020547,2]
[370242234,1751921450283,-460.0,0.00020547,2]
[370242236,1751921450292,-460.0,0.00020547,2]
[370242238,1751921450302,-460.0,0.00020547,2]
[370242240,1751921450310,-460.0,0.00020547,2]
[370242242,1751921450320,-230.322291,0.00020547,2]
[370242244,1751921450329,-460.0,0.00020547,2]
[370242246,1751921450338,-460.0,0.00020547,2]
[370242248,1751921450348,-230.322291,0.00020547,2]
[370242250,1751921450357,-460.0,0.00020547,2]
[370242252,1751921450367,-1492.88,0.00020547,2]
[370242254,1751921450376,-460.0,0.00020547,2]
[370242257,1751921450386,-460.0,0.00020547,2]
[370242259,1751921450395,-489.19,0.00020547,2]
[370242261,1751921450405,-2345.96,0.00020547,2]
[370242262,1751921450413,-460.0,0.00020547,2]
[370242264,1751921450423,-611.439066,0.00020547,2]
[370242265,1751921450432,-460.0,0.00020547,2]
[370242266,1751921450441,-3578.61,0.00020547,2]
[370242267,1751921450450,-611.439066,0.00020547,2]
[370242268,1751921450459,-460.0,0.00020547,2]
[370242269,1751921450469,-460.0,0.00020547,2]
[370242270,1751921450478,-460.0,0.00020547,2]
[370242271,1751921450487,-1615.42,0.00020547,2]
[370242272,1751921450496,-460.0,0.00020547,2]
[370242273,1751921450505,-936.72,0.00020547,2]
[370242274,1751921450514,-460.0,0.00020547,2]
[370242275,1751921450524,-151.0,0.00020547,2]
[370242276,1751921450533,-3630.9,0.00020547,2]
[370242277,1751921450542,-334.12115405,0.00020547,2]
[370242278,1751921450551,-460.0,0.00020547,2]
[370242280,1751921450560,-794.66,0.00020547,2]
[370242282,1751921450570,-460.0,0.00020547,2]
[370242284,1751921450579,-151.0,0.00020547,2]
[370242286,1751921450588,-647.5,0.00020547,2]
[370242288,1751921450598,-552.8,0.00020547,2]
[370242290,1751921450607,-460.0,0.00020547,2]
[370242292,1751921450616,-2132.19,0.00020547,2]
[370242294,1751921450626,-460.0,0.00020547,2]
[370242296,1751921450635,-354.57273675,0.00020547,2]
[370242311,1751921450763,-461.05726325,0.00020547,2]
[370242313,1751921450772,-94.49843666,0.00020547,2]
[370242315,1751921450784,-365.50156334,0.00020547,2]
[370242317,1751921450793,-460.0,0.00020547,2]
[370242319,1751921450802,-188.545295,0.00020547,2]
[370242321,1751921450811,-669.44,0.00020547,2]
[370242323,1751921450820,-460.0,0.00020547,2]
[370242325,1751921450830,-188.545295,0.00020547,2]
[370242327,1751921450839,-1413.77,0.00020547,2]
[370242329,1751921450849,-460.0,0.00020547,2]
[370242331,1751921450858,-460.0,0.00020547,2]
[370242333,1751921450867,-460.0,0.00020547,2]
[370242335,1751921450876,-1497.44,0.00020547,2]
[370242337,1751921450885,-283.41025312,0.00020547,2]
[370242339,1751921450895,-460.0,0.00020547,2]
[370242341,1751921450904,-1545.08,0.00020547,2]
[370242343,1751921450914,-460.0,0.00020547,2]
[370242345,1751921450924,-1183.15,0.00020547,2]
[370242347,1751921450933,-269.83999525,0.00020547,2]
[370242349,1751921450942,-151.0,0.00020547,2]
[370242351,1751921450952,-460.0,0.00020547,2]
[370242353,1751921450961,-151.0,0.00020547,2]
[370242355,1751921450971,-460.0,0.00020547,2]
[370242357,1751921450980,-151.0,0.00020547,2]
[370242359,1751921450990,-460.0,0.00020547,2]
[370242361,1751921450999,-460.0,0.00020547,2]
[370242363,1751921451008,-460.0,0.00020547,2]
[370242365,1751921451018,-460.0,0.00020547,2]
[370242367,1751921451027,-765.59,0.00020547,2]
[370242369,1751921451037,-636.51,0.00020547,2]
[370242371,1751921451047,-460.0,0.00020547,2]
[370242373,1751921451056,-151.0,0.00020547,2]
[370242375,1751921451066,-1657.21,0.00020547,2]
[370242377,1751921451075,-1461.23,0.00020547,2]
[370242379,1751921451085,-460.0,0.00020547,2]
[370242381,1751921451094,-460.0,0.00020547,2]
[370242383,1751921451104,-460.0,0.00020547,2]
[370242385,1751921451114,-463.64,0.00020547,2]
[370242387,1751921451123,-151.0,0.00020547,2]
[370242389,1751921451133,-460.0,0.00020547,2]
[370242391,1751921451142,-460.0,0.00020547,2]
[370242393,1751921451152,-460.0,0.00020547,2]
[370242396,1751921451163,-151.0,0.00020547,2]
[370242398,1751921451172,-460.0,0.00020547,2]
[370242400,1751921451182,-151.0,0.00020547,2]
[370242402,1751921451191,-2241.64,0.00020547,2]
[370242404,1751921451201,-460.0,0.00020547,2]
[370242406,1751921451210,-460.0,0.00020547,2]
[370242407,1751921451219,-460.0,0.00020547,2]
[370242409,1751921451228,-470.42,0.00020547,2]
[370242411,1751921451238,-545.88,0.00020547,2]
[370242413,1751921451247,-2505.76343209,0.00020547,2]
[370242439,1751921451605,-789.83,0.00019178,2]
[370242441,1751921451614,-460.0,0.00019452,2]
[370242442,1751921451623,-789.83,0.00019452,2]
[370242444,1751921451632,-460.0,0.00019726,2]
[370242446,1751921451641,-59.09168008,0.00019726,2]
[370242468,1751921451950,-400.90831992,0.00019726,2]
[370242470,1751921451960,-789.83,0.00019726,2]
[370242471,1751921451970,-460.0,0.0002,2]
[370242473,1751921451979,-460.0,0.0002,2]
[370242475,1751921451988,-789.83,0.0002,2]
[370242476,1751921451997,-460.0,0.00020273,2]
[370242478,1751921452006,-460.0,0.00020273,2]
[370242480,1751921452016,-789.83,0.00020273,2]
[370242481,1751921452024,-237.64656791,0.00020547,2]
[370242483,1751921452033,-460.0,0.00020547,2]
[370242484,1751921452043,-460.0,0.00020547,2]
[370242486,1751921452052,-460.0,0.00020547,2]
[370242488,1751921452061,-2082.34,0.00020547,2]
[370242489,1751921452071,-460.0,0.00020547,2]
[370242491,1751921452079,-151.0,0.00020547,2]
[370242493,1751921452088,-460.0,0.00020547,2]
[370242494,1751921452097,-460.0,0.00020547,2]
[370242496,1751921452107,-460.0,0.00020547,2]
[370242497,1751921452116,-460.0,0.00020547,2]
[370242499,1751921452125,-460.0,0.00020547,2]
[370242501,1751921452135,-789.83,0.00020547,2]
[370242502,1751921452144,-306.0,0.00020548,2]
[370242504,1751921452152,-178.215619,0.00020581,2]
[370242506,1751921452162,-1412.23878396,0.00020585,2]
[370242507,1751921452170,-2159.49,0.000206,2]
[370242509,1751921452179,-151.0,0.000206,2]
[370242511,1751921452188,-666.62,0.0002066,2]
[370242512,1751921452197,-177.985,0.0002066,2]
[370242514,1751921452206,-169.19054212,0.00020721,2]
[370242516,1751921452215,-393.0,0.00020787,2]
[370242517,1751921452225,-420.0,0.00020787,2]
[370242519,1751921452235,-420.0,0.00020787,2]
[370242521,1751921452245,-1482.3373392,0.00020795,2]
[370242522,1751921452255,-264.262535,0.00020802,2]
[370242524,1751921452265,-151.0,0.00020802,2]
[370242526,1751921452274,-151.0,0.00020802,2]
[370242527,1751921452284,-151.0,0.00020802,2]
[370242529,1751921452294,-151.0,0.00020802,2]
[370242531,1751921452303,-151.0,0.00020802,2]
[370242532,1751921452313,-217.106188,0.00020802,2]
[370242534,1751921452322,-217.106188,0.00020802,2]
[370242536,1751921452331,-500.0,0.00020803,2]
[370242537,1751921452340,-500.0,0.00020803,2]
[370242539,1751921452350,-25000.0,0.00020803,2]
[370242540,1751921452359,-24714.52687251,0.00020803,2]
[370242542,1751921452369,-207.4,0.00020803,2]
[370242544,1751921452378,-500.0,0.00020803,2]
[370242545,1751921452387,-500.0,0.00020803,2]
[370242547,1751921452396,-500.0,0.00020803,2]
[370242549,1751921452406,-500.0,0.00020803,2]
[370242550,1751921452416,-151.0,0.00020803,2]
[370242552,1751921452425,-500.0,0.00020803,2]
[370242554,1751921452435,-151.0,0.00020803,2]
[370242555,1751921452444,-151.0,0.00020803,2]
[370242557,1751921452453,-151.0,0.00020803,2]
[370242559,1751921452463,-151.0,0.00020803,2]
[370242560,1751921452472,-151.0,0.00020803,2]
[370242562,1751921452481,-151.0,0.00020803,2]
[370242564,1751921452490,-151.0,0.00020803,2]
[370242565,1751921452498,-1500.0,0.00020803,2]
[370242567,1751921452507,-1500.0,0.00020803,2]
[370242569,1751921452517,-1500.0,0.00020803,2]
[370242571,1751921452526,-1000.0,0.00020803,2]
[370242573,1751921452535,-690.642,0.00020803,2]
[370242575,1751921452545,-151.0,0.00020803,2]
[370242576,1751921452554,-151.0,0.00020803,2]
[370242577,1751921452563,-151.0,0.00020803,2]
[370242578,1751921452573,-151.0,0.00020803,2]
[370242579,1751921452581,-151.0,0.00020803,2]
[370242580,1751921452590,-187.40654362,0.00020803,2]
[370242581,1751921452599,-2000.0,0.00020816,2]
[370242582,1751921452608,-150.0,0.0002082,2]
[370242583,1751921452618,-151.0,0.00020821,2]
[370242584,1751921452627,-151.0,0.00020821,2]
[370242585,1751921452636,-151.0,0.00020821,2]
[370242586,1751921452645,-151.0,0.00020821,2]
[370242587,1751921452654,-460.0,0.00020821,2]
[370242588,1751921452663,-151.0,0.00020821,2]
[370242589,1751921452676,-220.013414,0.00020821,2]
[370242590,1751921452685,-220.013414,0.00020821,2]
[370242591,1751921452694,-151.0,0.00020821,2]
[370242592,1751921452702,-460.0,0.00020821,2]
[370242593,1751921452712,-460.0,0.00020821,2]
[370242594,1751921452721,-280.817291,0.00020821,2]
[370242595,1751921452731,-280.817291,0.00020821,2]
[370242596,1751921452740,-460.0,0.00020821,2]
[370242598,1751921452750,-460.0,0.00020821,2]
[370242599,1751921452760,-460.0,0.00020821,2]
[370242601,1751921452769,-308.35853746,0.00020821,2]
[370242603,1751921452778,-460.0,0.00020821,2]
[370242605,1751921452788,-460.0,0.00020821,2]
[370242607,1751921452797,-460.0,0.00020821,2]
[370242609,1751921452807,-164.82,0.00020821,2]
[370242611,1751921452816,-460.0,0.00020821,2]
[370242613,1751921452826,-460.0,0.00020821,2]
[370242615,1751921452835,-151.0,0.00020821,2]
[370242617,1751921452845,-460.0,0.00020821,2]
[370242619,1751921452854,-432.34491823,0.00020821,2]
[370242621,1751921452863,-460.0,0.00020821,2]
[370242623,1751921452872,-460.0,0.00020821,2]
[370242625,1751921452881,-230.322291,0.00020821,2]
[370242627,1751921452890,-460.0,0.00020821,2]
[370242629,1751921452899,-460.0,0.00020821,2]
[370242631,1751921452908,-230.322291,0.00020821,2]
[370242633,1751921452918,-460.0,0.00020821,2]
[370242635,1751921452927,-460.0,0.00020821,2]
[370242637,1751921452936,-2345.96,0.00020821,2]
[370242639,1751921452945,-460.0,0.00020821,2]
[370242641,1751921452954,-460.0,0.00020821,2]
[370242643,1751921452963,-3578.61,0.00020821,2]
[370242645,1751921452972,-460.0,0.00020821,2]
[370242647,1751921452981,-460.0,0.00020821,2]
[370242649,1751921452991,-1615.42,0.00020821,2]
[370242651,1751921453000,-460.0,0.00020821,2]
[370242653,1751921453009,-936.72,0.00020821,2]
[370242655,1751921453018,-460.0,0.00020821,2]
[370242657,1751921453028,-3630.9,0.00020821,2]
[370242659,1751921453037,-460.0,0.00020821,2]
[370242661,1751921453046,-794.66,0.00020821,2]
[370242663,1751921453055,-218.2,0.00020821,2]
[370242665,1751921453064,-151.0,0.00020821,2]
[370242667,1751921453073,-647.5,0.00020821,2]
[370242669,1751921453082,-552.8,0.00020821,2]
[370242671,1751921453091,-460.0,0.00020821,2]
[370242673,1751921453101,-2132.19,0.00020821,2]
[370242675,1751921453110,-460.0,0.00020821,2]
[370242677,1751921453119,-815.63,0.00020821,2]
[370242679,1751921453128,-460.0,0.00020821,2]
[370242681,1751921453137,-460.0,0.00020821,2]
[370242683,1751921453146,-188.545295,0.00020821,2]
[370242685,1751921453155,-669.44,0.00020821,2]
[370242687,1751921453164,-460.0,0.00020821,2]
[370242689,1751921453173,-188.545295,0.00020821,2]
[370242691,1751921453182,-1413.77,0.00020821,2]
[370242693,1751921453191,-460.0,0.00020821,2]
[370242695,1751921453200,-460.0,0.00020821,2]
[370242697,1751921453209,-460.0,0.00020821,2]
[370242699,1751921453218,-1497.44,0.00020821,2]
[370242701,1751921453227,-460.0,0.00020821,2]
[370242703,1751921453236,-1545.08,0.00020821,2]
[370242705,1751921453247,-460.0,0.00020821,2]
[370242707,1751921453256,-1183.15,0.00020821,2]
[370242709,1751921453265,-460.0,0.00020821,2]
[370242711,1751921453275,-460.0,0.00020821,2]
[370242713,1751921453284,-467.02,0.00020821,2]
[370242715,1751921453293,-460.0,0.00020821,2]
[370242717,1751921453302,-460.0,0.00020821,2]
[370242719,1751921453311,-460.0,0.00020821,2]
[370242721,1751921453320,-765.59,0.00020821,2]
[370242723,1751921453329,-636.51,0.00020821,2]
[370242725,1751921453338,-460.0,0.00020821,2]
[370242727,1751921453347,-1657.21,0.00020821,2]
[370242729,1751921453356,-1461.23,0.00020821,2]
[370242731,1751921453365,-460.0,0.00020821,2]
[370242733,1751921453375,-460.0,0.00020821,2]
[370242735,1751921453386,-460.0,0.00020821,2]
[370242737,1751921453395,-463.64,0.00020821,2]
[370242739,1751921453406,-563.36,0.00020821,2]
[370242741,1751921453416,-460.0,0.00020821,2]
[370242743,1751921453425,-460.0,0.00020821,2]
[370242745,1751921453435,-151.0,0.00020821,2]
[370242747,1751921453444,-314.6497337,0.00020821,2]
[370242749,1751921453453,-151.0,0.00020821,2]
[370242751,1751921453462,-2241.64,0.00020821,2]
[370242753,1751921453471,-460.0,0.00020821,2]
[370242755,1751921453482,-460.0,0.00020821,2]
[370242757,1751921453492,-460.0,0.00020821,2]
[370242759,1751921453501,-470.42,0.00020821,2]
[370242761,1751921453510,-545.88,0.00020821,2]
[370242763,1751921453520,-2743.41,0.00020821,2]
[370242765,1751921453530,-460.0,0.00020821,2]
[370242767,1751921453540,-460.0,0.00020821,2]
[370242769,1751921453549,-460.0,0.00020821,2]
[370242771,1751921453559,-2082.34,0.00020821,2]
[370242773,1751921453568,-460.0,0.00020821,2]
[370242775,1751921453577,-460.0,0.00020821,2]
[370242777,1751921453589,-460.0,0.00020821,2]
[370242778,1751921453598,-460.0,0.00020821,2]
[370242781,1751921453607,-460.0,0.00020821,2]
[370242782,1751921453616,-460.0,0.00020821,2]
[370242784,1751921453625,-789.83,0.00020821,2]
[370242786,1751921453634,-222.7,0.00020823,4]
[370242788,1751921453644,-716.195754,0.00020858,2]
[370242791,1751921453654,-529.0,0.00020861,2]
[370242793,1751921453665,-1500.0,0.0002087,2]
[370242795,1751921453676,-500.0,0.0002087,2]
[370242796,1751921453686,-1680.0,0.00020888,2]
[370242799,1751921453696,-168.035702,0.00020889,2]
[370242800,1751921453707,-742.6949969,0.00020913,2]
[370242802,1751921453716,-529.0,0.00020936,2]
[370242805,1751921453726,-770.17471178,0.00020968,2]
[370242807,1751921453736,-119784.86749368,0.00021,2]
[370242809,1751921453746,-11722.07630543,0.00021,2]
[370242810,1751921453756,-245.373361,0.00021,2]
[370242812,1751921453765,-151.0,0.00021,2]
[370242814,1751921453775,-151.0,0.00021,2]
[370242816,1751921453784,-151.0,0.00021,2]
[370242819,1751921453794,-151.0,0.00021,2]
[370242820,1751921453803,-222.381084,0.00021,2]
[370242823,1751921453812,-222.381084,0.00021,2]
[370242825,1751921453821,-151.0,0.00021,2]
[370242826,1751921453831,-151.0,0.00021,2]
[370242828,1751921453840,-217.106188,0.00021,2]
[370242843,1751921453961,-217.106188,0.00021,2]
[370242845,1751921453971,-151.0,0.00021,2]
[370242847,1751921453981,-151.0,0.00021,2]
[370242849,1751921453990,-151.0,0.00021,2]
[370242851,1751921453999,-151.0,0.00021,2]
[370242853,1751921454009,-151.0,0.00021,2]
[370242855,1751921454018,-611.439066,0.00021,2]
[370242857,1751921454027,-611.439066,0.00021,2]
[370242859,1751921454037,-151.0,0.00021,2]
[370242861,1751921454046,-151.0,0.00021,2]
[370242863,1751921454055,-151.0,0.00021,2]
[370242865,1751921454065,-151.0,0.00021,2]
[370242867,1751921454074,-151.0,0.00021,2]
[370242869,1751921454083,-798.67117612,0.00021023,2]
[370242871,1751921454093,-230.322291,0.00021041,2]
[370242873,1751921454102,-230.322291,0.00021041,2]
[370242875,1751921454111,-151.0,0.00021041,2]
[370242877,1751921454121,-151.0,0.00021041,2]
[370242879,1751921454130,-151.0,0.00021041,2]
[370242881,1751921454139,-177.763542,0.00021041,2]
[370242882,1751921454148,-306.0,0.00021041,2]
[370242883,1751921454157,-153.0,0.00021041,2]
[370242884,1751921454165,-177.1352764,0.00021041,2]
[370242885,1751921454174,-355.4196952,0.00021068,2]
[370242886,1751921454183,-828.22200964,0.00021078,2]
[370242887,1751921454192,-500.0,0.00021079,2]
[370242888,1751921454200,-151.0,0.00021086,2]
[370242889,1751921454209,-151.0,0.00021095,2]
[370242890,1751921454218,-500.0,0.00021095,15]
[370242891,1751921454227,-240.0415156,0.00021095,2]